{"text_format":"3","workbook":"xlsx","n_sheets":1,"sheets":["รายการของชำ"],"not_rendered":{"images":1,"external_links":1,"defined_names":3},"read":"whole","date_system":"1900"}

{"sheet":"รายการของชำ","index":0,"n_rows":31,"n_cols":8,"rows_kept":31,"merged":[[1,1,1,2]]}
[null,"รายการของชำ"]
[null,"วันที่"]
[null,"เสร็จสิ้นแล้วใช่ไหม","รายการ","ประเภท","จำนวน","ราคา","ราคามูลค่าเพิ่ม","ยี่ห้อ/ความคิดเห็น"]
[null,null,"ส้ม","ผลิต",null,null,{"$f":"IFERROR(SUM(รายการของชำ[จำนวน]*รายการของชำ[ราคา]), \"\")","v":{"v":0,"d":"฿0.00"}}]
[null,null,"แอปเปิ้ล","ผลิต",null,null,{"$f":"IFERROR(SUM(รายการของชำ[จำนวน]*รายการของชำ[ราคา]), \"\")","v":{"v":0,"d":"฿0.00"}}]
[null,null,"กล้วย","ผลิต",null,null,{"$f":"IFERROR(SUM(รายการของชำ[จำนวน]*รายการของชำ[ราคา]), \"\")","v":{"v":0,"d":"฿0.00"}}]
[null,null,"ผักกาดหอม","ผลิต",null,null,{"$f":"IFERROR(SUM(รายการของชำ[จำนวน]*รายการของชำ[ราคา]), \"\")","v":{"v":0,"d":"฿0.00"}}]
[null,null,"มะเขือเทศ","ผลิต",null,null,{"$f":"IFERROR(SUM(รายการของชำ[จำนวน]*รายการของชำ[ราคา]), \"\")","v":{"v":0,"d":"฿0.00"}},"  "]
[null,null,"นม ","ประจำวัน",null,null,{"$f":"IFERROR(SUM(รายการของชำ[จำนวน]*รายการของชำ[ราคา]), \"\")","v":{"v":0,"d":"฿0.00"}}]
[null,null,"ชีส","ประจำวัน",null,null,{"$f":"IFERROR(SUM(รายการของชำ[จำนวน]*รายการของชำ[ราคา]), \"\")","v":{"v":0,"d":"฿0.00"}}]
[null,null,"ไข่","ประจำวัน",null,null,{"$f":"IFERROR(SUM(รายการของชำ[จำนวน]*รายการของชำ[ราคา]), \"\")","v":{"v":0,"d":"฿0.00"}}]
[null,null,"คอทเทจชีส","ประจำวัน",null,null,{"$f":"IFERROR(SUM(รายการของชำ[จำนวน]*รายการของชำ[ราคา]), \"\")","v":{"v":0,"d":"฿0.00"}}]
[null,null,"เนื้อวัว","เนื้อสัตว์",null,null,{"$f":"IFERROR(SUM(รายการของชำ[จำนวน]*รายการของชำ[ราคา]), \"\")","v":{"v":0,"d":"฿0.00"}}]
[null,null,"สัตว์ปีก","เนื้อสัตว์",null,null,{"$f":"IFERROR(SUM(รายการของชำ[จำนวน]*รายการของชำ[ราคา]), \"\")","v":{"v":0,"d":"฿0.00"}}]
[null,null,"แฮม","เนื้อสัตว์",null,null,{"$f":"IFERROR(SUM(รายการของชำ[จำนวน]*รายการของชำ[ราคา]), \"\")","v":{"v":0,"d":"฿0.00"}}]
[null,null,"น้ำผลไม้","เครื่องดื่ม",null,null,{"$f":"IFERROR(SUM(รายการของชำ[จำนวน]*รายการของชำ[ราคา]), \"\")","v":{"v":0,"d":"฿0.00"}}]
[null,null,"กาแฟ","เครื่องดื่ม",null,null,{"$f":"IFERROR(SUM(รายการของชำ[จำนวน]*รายการของชำ[ราคา]), \"\")","v":{"v":0,"d":"฿0.00"}}]
[null,null,"ชา","เครื่องดื่ม",null,null,{"$f":"IFERROR(SUM(รายการของชำ[จำนวน]*รายการของชำ[ราคา]), \"\")","v":{"v":0,"d":"฿0.00"}}]
[null,null,"น้ำ","เครื่องดื่ม",null,null,{"$f":"IFERROR(SUM(รายการของชำ[จำนวน]*รายการของชำ[ราคา]), \"\")","v":{"v":0,"d":"฿0.00"}}]
[null,null,"บะหมี่","พาสต้า",null,null,{"$f":"IFERROR(SUM(รายการของชำ[จำนวน]*รายการของชำ[ราคา]), \"\")","v":{"v":0,"d":"฿0.00"}}]
[null,null,"ข้าว","พาสต้า",null,null,{"$f":"IFERROR(SUM(รายการของชำ[จำนวน]*รายการของชำ[ราคา]), \"\")","v":{"v":0,"d":"฿0.00"}}]
[null,null,"อาหารกระป๋อง","ซุป",null,null,{"$f":"IFERROR(SUM(รายการของชำ[จำนวน]*รายการของชำ[ราคา]), \"\")","v":{"v":0,"d":"฿0.00"}}]
[null,null,"ส่วนผสมแห้ง","ซุป",null,null,{"$f":"IFERROR(SUM(รายการของชำ[จำนวน]*รายการของชำ[ราคา]), \"\")","v":{"v":0,"d":"฿0.00"}}]
[null,null,"ขนมปัง","เบเกอรี่",null,null,{"$f":"IFERROR(SUM(รายการของชำ[จำนวน]*รายการของชำ[ราคา]), \"\")","v":{"v":0,"d":"฿0.00"}}]
[null,null,"มันฝรั่งทอดกรอบ","ของว่าง",null,null,{"$f":"IFERROR(SUM(รายการของชำ[จำนวน]*รายการของชำ[ราคา]), \"\")","v":{"v":0,"d":"฿0.00"}}]
[null,null,"เพรซเซิล","ของว่าง",null,null,{"$f":"IFERROR(SUM(รายการของชำ[จำนวน]*รายการของชำ[ราคา]), \"\")","v":{"v":0,"d":"฿0.00"}}]
[null,null,"ไอศกรีม","ของว่าง",null,null,{"$f":"IFERROR(SUM(รายการของชำ[จำนวน]*รายการของชำ[ราคา]), \"\")","v":{"v":0,"d":"฿0.00"}}]
[null,null,"คุกกี้","ของว่าง",null,null,{"$f":"IFERROR(SUM(รายการของชำ[จำนวน]*รายการของชำ[ราคา]), \"\")","v":{"v":0,"d":"฿0.00"}}]
[null,null,"จานกระดาษ","สินค้า",null,null,{"$f":"IFERROR(SUM(รายการของชำ[จำนวน]*รายการของชำ[ราคา]), \"\")","v":{"v":0,"d":"฿0.00"}}]
[null,null,"ผ้าอนามัย","สินค้า",null,null,{"$f":"IFERROR(SUM(รายการของชำ[จำนวน]*รายการของชำ[ราคา]), \"\")","v":{"v":0,"d":"฿0.00"}}]
[{"$nulls":6},{"$f":"SUBTOTAL(109,รายการของชำ[ราคามูลค่าเพิ่ม])","v":{"v":0,"d":"฿0.00"}}]